[Event "*** Titled Tuesday Blitz"]
[Site "Chess.com"]
[Date "2019.08.06"]
[Round "3"]
[White "HansCoolNiemann"]
[Black "Polish_fighter3000"]
[Result "1/2-1/2"]
[WhiteElo "2705"]
[BlackElo "2971"]
[TimeControl "180+2"]
[EndTime "13:36:30 PDT"]
[Termination "Game drawn by repetition"]

1. d4 {[%clk 0:03:01.9]} 1... Nf6 {[%clk 0:02:58.9]} 2. c4 {[%clk 0:03:02.6]}
2... d6 {[%clk 0:03:00.2]} 3. Nf3 {[%clk 0:03:03.4]} 3... Nbd7 {[%clk
0:03:00.4]} 4. Nc3 {[%clk 0:03:04.7]} 4... e5 {[%clk 0:03:01.9]} 5. e4 {[%clk
0:03:06]} 5... Be7 {[%clk 0:03:03.4]} 6. g3 {[%clk 0:03:06.2]} 6... exd4 {[%clk
0:02:55.3]} 7. Nxd4 {[%clk 0:03:08.1]} 7... Ne5 {[%clk 0:02:56.6]} 8. f4 {[%clk
0:02:58.3]} 8... Nc6 {[%clk 0:02:48]} 9. Nxc6 {[%clk 0:02:55.6]} 9... bxc6
{[%clk 0:02:49.9]} 10. Bg2 {[%clk 0:02:57.5]} 10... O-O {[%clk 0:02:46.1]} 11.
O-O {[%clk 0:02:57.7]} 11... Rb8 {[%clk 0:02:45.2]} 12. b3 {[%clk 0:02:56.1]}
12... Nd7 {[%clk 0:02:41]} 13. Bb2 {[%clk 0:02:55.6]} 13... Bf6 {[%clk
0:02:42.4]} 14. Qd2 {[%clk 0:02:49.6]} 14... c5 {[%clk 0:02:43]} 15. Rad1 {[%clk
0:02:43.3]} 15... Bd4+ {[%clk 0:02:40]} 16. Kh1 {[%clk 0:02:44.1]} 16... Bb7
{[%clk 0:02:41.6]} 17. Nb5 {[%clk 0:02:39.1]} 17... Bxb2 {[%clk 0:02:37.8]} 18.
Qxb2 {[%clk 0:02:41]} 18... Re8 {[%clk 0:02:29.2]} 19. Rfe1 {[%clk 0:02:28.5]}
19... a6 {[%clk 0:02:27.9]} 20. Nc3 {[%clk 0:02:29]} 20... Qc8 {[%clk
0:02:13.2]} 21. Qd2 {[%clk 0:02:19.1]} 21... Nf6 {[%clk 0:02:02.9]} 22. h3
{[%clk 0:02:13.7]} 22... h6 {[%clk 0:01:58.1]} 23. g4 {[%clk 0:02:11.3]} 23...
Bc6 {[%clk 0:01:56.5]} 24. Re3 {[%clk 0:02:01.5]} 24... Qb7 {[%clk 0:01:53.8]}
25. Rde1 {[%clk 0:02:01.9]} 25... Nd7 {[%clk 0:01:49.7]} 26. h4 {[%clk
0:01:56.5]} 26... Re7 {[%clk 0:01:32.1]} 27. g5 {[%clk 0:01:56.5]} 27... h5
{[%clk 0:01:33.1]} 28. Nd5 {[%clk 0:01:52.7]} 28... Bxd5 {[%clk 0:01:32.4]} 29.
exd5 {[%clk 0:01:54.6]} 29... Rxe3 {[%clk 0:01:33.3]} 30. Rxe3 {[%clk
0:01:52.2]} 30... Nf8 {[%clk 0:01:30.9]} 31. f5 {[%clk 0:01:52.4]} 31... Nd7
{[%clk 0:01:29.3]} 32. Qe2 {[%clk 0:01:51.2]} 32... Qb4 {[%clk 0:00:45]} 33.
Qxh5 {[%clk 0:01:44.4]} 33... Qd2 {[%clk 0:00:44.4]} 34. Re7 {[%clk 0:01:43.9]}
34... Ne5 {[%clk 0:00:43.6]} 35. g6 {[%clk 0:01:18.7]} 35... Qe1+ {[%clk
0:00:17.3]} 36. Kh2 {[%clk 0:01:05]} 36... Ng4+ {[%clk 0:00:13]} 37. Kh3 {[%clk
0:01:00.3]} 37... Nf2+ {[%clk 0:00:14.3]} 38. Kh2 {[%clk 0:00:44]} 38... Ng4+
{[%clk 0:00:14.9]} 39. Kh3 {[%clk 0:00:40.9]} 39... Nf2+ {[%clk 0:00:16.4]} 40.
Kh2 {[%clk 0:00:15.6]} 40... Ng4+ {[%clk 0:00:17.2]} 1/2-1/2

[Event "*** Titled Tuesday Blitz"]
[Site "Chess.com"]
[Date "2019.08.06"]
[Round "3"]
[White "Gareth-Bale11"]
[Black "Genghis_K"]
[Result "1-0"]
[WhiteElo "2745"]
[BlackElo "2874"]
[TimeControl "180+2"]
[EndTime "13:36:31 PDT"]
[Termination "Gareth-Bale11 won by checkmate"]

1. d4 {[%clk 0:03:01.1]} 1... Nf6 {[%clk 0:02:48.9]} 2. c4 {[%clk 0:02:59.1]}
2... g6 {[%clk 0:02:49.7]} 3. Nc3 {[%clk 0:02:59.4]} 3... Bg7 {[%clk 0:02:51.1]}
4. e4 {[%clk 0:03:00.3]} 4... d6 {[%clk 0:02:52.4]} 5. Be2 {[%clk 0:03:01.4]}
5... O-O {[%clk 0:02:53]} 6. Be3 {[%clk 0:03:02.8]} 6... c6 {[%clk 0:02:53.2]}
7. Qd2 {[%clk 0:02:56.7]} 7... e5 {[%clk 0:02:48.5]} 8. d5 {[%clk 0:02:57.5]}
8... cxd5 {[%clk 0:02:46.5]} 9. cxd5 {[%clk 0:02:57.5]} 9... Na6 {[%clk
0:02:37]} 10. f3 {[%clk 0:02:56.4]} 10... Bd7 {[%clk 0:02:32.3]} 11. g4 {[%clk
0:02:53.3]} 11... h5 {[%clk 0:02:29]} 12. g5 {[%clk 0:02:44.6]} 12... Nh7 {[%clk
0:02:15.8]} 13. h4 {[%clk 0:02:45.5]} 13... f6 {[%clk 0:02:08.5]} 14. Nh3 {[%clk
0:02:30]} 14... Rc8 {[%clk 0:01:54.8]} 15. gxf6 {[%clk 0:02:14.1]} 15... Bxf6
{[%clk 0:01:54.9]} 16. O-O-O {[%clk 0:02:14.4]} 16... b5 {[%clk 0:01:44.3]} 17.
Rdg1 {[%clk 0:01:58.4]} 17... b4 {[%clk 0:01:44.9]} 18. Bxa6 {[%clk 0:01:44.8]}
18... bxc3 {[%clk 0:01:43.5]} 19. bxc3 {[%clk 0:01:46]} 19... Qa5 {[%clk
0:01:37.6]} 20. Bxc8 {[%clk 0:01:46]} 20... Rxc8 {[%clk 0:01:39.5]} 21. Kb2
{[%clk 0:01:43.7]} 21... Kf7 {[%clk 0:01:31.4]} 22. Ng5+ {[%clk 0:01:43.3]}
22... Nxg5 {[%clk 0:01:31.3]} 23. Bxg5 {[%clk 0:01:45.2]} 23... Bg7 {[%clk
0:01:20.7]} 24. Rc1 {[%clk 0:01:34.9]} 24... Bb5 {[%clk 0:01:19.4]} 25. Ka1
{[%clk 0:01:32.8]} 25... Bc4 {[%clk 0:01:18.8]} 26. Rhg1 {[%clk 0:01:33.6]}
26... Bf8 {[%clk 0:01:13.7]} 27. Qg2 {[%clk 0:01:30.2]} 27... Qa6 {[%clk
0:01:02.6]} 28. Rc2 {[%clk 0:01:04.1]} 28... Bb3 {[%clk 0:00:40.4]} 29. Bd8
{[%clk 0:00:53.9]} 29... Ke8 {[%clk 0:00:20.8]} 30. Bf6 {[%clk 0:00:54.2]} 30...
Kd7 {[%clk 0:00:13.2]} 31. Qxg6 {[%clk 0:00:49.7]} 31... Kc7 {[%clk 0:00:14.6]}
32. Qf7+ {[%clk 0:00:47.4]} 32... Kb6 {[%clk 0:00:15.2]} 33. Rb2 {[%clk
0:00:48.5]} 33... Rxc3 {[%clk 0:00:15.5]} 34. Rgb1 {[%clk 0:00:46.3]} 34... Kc5
{[%clk 0:00:14.5]} 35. Rxb3 {[%clk 0:00:34.6]} 35... Rc4 {[%clk 0:00:15.8]} 36.
Bg5 {[%clk 0:00:31]} 36... Ra4 {[%clk 0:00:06.2]} 37. Be3+ {[%clk 0:00:30.4]}
37... Kc4 {[%clk 0:00:07.1]} 38. Qc7+ {[%clk 0:00:30.2]} 38... Qc6 {[%clk
0:00:07.4]} 39. Qxc6# {[%clk 0:00:31]} 1-0

[Event "*** Titled Tuesday Blitz"]
[Site "Chess.com"]
[Date "2019.08.06"]
[Round "3"]
[White "Zubrrr"]
[Black "bugsbunny444"]
[Result "1-0"]
[WhiteElo "2724"]
[BlackElo "2493"]
[TimeControl "180+2"]
[EndTime "13:36:34 PDT"]
[Termination "Zubrrr won on time"]

1. c4 {[%clk 0:03:01.8]} 1... b6 {[%clk 0:02:59.5]} 2. Nc3 {[%clk 0:03:02]} 2...
Bb7 {[%clk 0:02:57.9]} 3. e4 {[%clk 0:03:03.1]} 3... e6 {[%clk 0:02:58.8]} 4.
Nge2 {[%clk 0:03:02]} 4... Nf6 {[%clk 0:02:58.8]} 5. e5 {[%clk 0:03:02.6]} 5...
Ng8 {[%clk 0:02:50.7]} 6. d4 {[%clk 0:03:02.4]} 6... d6 {[%clk 0:02:52.3]} 7.
Be3 {[%clk 0:02:35.4]} 7... dxe5 {[%clk 0:02:51]} 8. dxe5 {[%clk 0:02:37.3]}
8... Nd7 {[%clk 0:02:46.4]} 9. f4 {[%clk 0:02:32.7]} 9... Bc5 {[%clk 0:02:41.2]}
10. Qd2 {[%clk 0:02:33]} 10... Nh6 {[%clk 0:02:36.1]} 11. Nd4 {[%clk 0:02:18.6]}
11... Ng4 {[%clk 0:02:01.4]} 12. Bg1 {[%clk 0:02:18.7]} 12... O-O {[%clk
0:01:30.6]} 13. O-O-O {[%clk 0:02:18.3]} 13... Qe7 {[%clk 0:01:10.2]} 14. h3
{[%clk 0:02:10]} 14... Nh6 {[%clk 0:01:00.7]} 15. Rh2 {[%clk 0:02:02.5]} 15...
Rad8 {[%clk 0:00:54]} 16. g4 {[%clk 0:01:58.1]} 16... Nxe5 {[%clk 0:00:40]} 17.
fxe5 {[%clk 0:01:54.7]} 17... Bxd4 {[%clk 0:00:41]} 18. Bxd4 {[%clk 0:01:46.9]}
18... c5 {[%clk 0:00:42.3]} 19. Nb5 {[%clk 0:01:27]} 19... cxd4 {[%clk
0:00:42.9]} 20. Nd6 {[%clk 0:01:26.2]} 20... Bf3 {[%clk 0:00:30.4]} 21. Be2
{[%clk 0:01:26.2]} 21... Bxe2 {[%clk 0:00:30.4]} 22. Rxe2 {[%clk 0:01:28.1]}
22... Qh4 {[%clk 0:00:28.8]} 23. Qd3 {[%clk 0:00:33.3]} 23... f5 {[%clk
0:00:27.7]} 24. Qxd4 {[%clk 0:00:21.3]} 24... Qxh3 {[%clk 0:00:21.8]} 25. gxf5
{[%clk 0:00:18]} 25... Nxf5 {[%clk 0:00:22.6]} 26. Qd2 {[%clk 0:00:15.5]} 26...
Qg3 {[%clk 0:00:14.3]} 27. Nxf5 {[%clk 0:00:10.3]} 27... exf5 {[%clk 0:00:07.5]}
28. Qxd8 {[%clk 0:00:10.3]} 28... Rxd8 {[%clk 0:00:06.3]} 29. Rxd8+ {[%clk
0:00:12.2]} 29... Kf7 {[%clk 0:00:07.8]} 30. e6+ {[%clk 0:00:13.9]} 30... Ke7
{[%clk 0:00:07.2]} 31. Rd7+ {[%clk 0:00:15.1]} 31... Ke8 {[%clk 0:00:08.7]} 32.
Rxa7 {[%clk 0:00:15.4]} 32... Qg1+ {[%clk 0:00:02.5]} 33. Kc2 {[%clk 0:00:16.1]}
33... Qd4 {[%clk 0:00:03.4]} 34. Rc7 {[%clk 0:00:13.7]} 34... f4 {[%clk
0:00:02.8]} 35. e7 {[%clk 0:00:13]} 1-0

[Event "*** Titled Tuesday Blitz"]
[Site "Chess.com"]
[Date "2019.08.06"]
[Round "3"]
[White "2nd_life"]
[Black "Kimster98"]
[Result "0-1"]
[WhiteElo "2431"]
[BlackElo "2604"]
[TimeControl "180+2"]
[EndTime "13:36:35 PDT"]
[Termination "Kimster98 won by resignation"]

1. e4 {[%clk 0:03:01.9]} 1... e5 {[%clk 0:02:54.5]} 2. f4 {[%clk 0:03:01.8]}
2... exf4 {[%clk 0:02:54.3]} 3. Nf3 {[%clk 0:03:02.3]} 3... Nf6 {[%clk
0:02:55.9]} 4. Nc3 {[%clk 0:03:02.6]} 4... d5 {[%clk 0:02:56.3]} 5. exd5 {[%clk
0:03:03.1]} 5... Nxd5 {[%clk 0:02:57.7]} 6. Nxd5 {[%clk 0:03:03.6]} 6... Qxd5
{[%clk 0:02:59.6]} 7. d4 {[%clk 0:03:03.5]} 7... Bd6 {[%clk 0:02:57.2]} 8. c4
{[%clk 0:03:04.1]} 8... Qe6+ {[%clk 0:02:54.8]} 9. Kf2 {[%clk 0:02:58.9]} 9...
c6 {[%clk 0:02:52.3]} 10. Bd3 {[%clk 0:02:58.7]} 10... O-O {[%clk 0:02:48.1]}
11. Bxh7+ {[%clk 0:02:51.3]} 11... Kh8 {[%clk 0:02:48.8]} 12. c5 {[%clk
0:02:45.1]} 12... Bc7 {[%clk 0:02:40.7]} 13. Bc2 {[%clk 0:02:43.7]} 13... Qf6
{[%clk 0:02:34.4]} 14. Ne5 {[%clk 0:02:23.2]} 14... g6 {[%clk 0:02:35.1]} 15.
Re1 {[%clk 0:02:15.8]} 15... Bf5 {[%clk 0:02:32.1]} 16. Bxf5 {[%clk 0:01:50.4]}
16... Qxf5 {[%clk 0:02:34]} 17. Qg4 {[%clk 0:01:23.7]} 17... Qxg4 {[%clk
0:02:25.3]} 18. Nxg4 {[%clk 0:01:23.9]} 18... Nd7 {[%clk 0:02:24.1]} 19. g3
{[%clk 0:01:00.7]} 19... f5 {[%clk 0:02:11.9]} 20. Ne5 {[%clk 0:00:56.4]} 20...
Bxe5 {[%clk 0:01:58.7]} 21. dxe5 {[%clk 0:00:57.1]} 21... Nxc5 {[%clk
0:01:57.2]} 22. Kf3 {[%clk 0:00:29.9]} 22... fxg3 {[%clk 0:01:54.9]} 23. hxg3
{[%clk 0:00:29.1]} 23... Kg7 {[%clk 0:01:45.2]} 24. Bg5 {[%clk 0:00:21.4]} 24...
Ne4 {[%clk 0:01:42.1]} 25. Rxe4 {[%clk 0:00:16.4]} 25... fxe4+ {[%clk
0:01:42.5]} 26. Kxe4 {[%clk 0:00:18.3]} 26... Rf5 {[%clk 0:01:30.4]} 27. Bf6+
{[%clk 0:00:16.4]} 27... Rxf6 {[%clk 0:01:31.8]} 28. exf6+ {[%clk 0:00:17.3]}
28... Kxf6 {[%clk 0:01:33.7]} 29. Rf1+ {[%clk 0:00:18.4]} 29... Ke6 {[%clk
0:01:34.1]} 30. Rh1 {[%clk 0:00:20]} 30... Rd8 {[%clk 0:01:32.6]} 31. Rh7 {[%clk
0:00:18]} 31... Rd7 {[%clk 0:00:50.3]} 32. Rxd7 {[%clk 0:00:18.9]} 32... Kxd7
{[%clk 0:00:52.2]} 33. Ke5 {[%clk 0:00:20.2]} 33... Ke7 {[%clk 0:00:52.7]} 34.
g4 {[%clk 0:00:21.6]} 34... c5 {[%clk 0:00:51.2]} 35. a4 {[%clk 0:00:15.3]}
35... b6 {[%clk 0:00:50.4]} 36. b3 {[%clk 0:00:14.5]} 36... a6 {[%clk
0:00:42.2]} 37. g5 {[%clk 0:00:15.4]} 37... b5 {[%clk 0:00:41.6]} 38. axb5
{[%clk 0:00:15.2]} 38... axb5 {[%clk 0:00:43.5]} 39. Kd5 {[%clk 0:00:10.9]}
39... c4 {[%clk 0:00:43.8]} 40. bxc4 {[%clk 0:00:11.9]} 40... bxc4 {[%clk
0:00:37.3]} 41. Kxc4 {[%clk 0:00:12.7]} 41... Ke6 {[%clk 0:00:38.7]} 42. Kd3
{[%clk 0:00:14]} 42... Kf5 {[%clk 0:00:40.6]} 43. Ke2 {[%clk 0:00:15.4]} 43...
Kxg5 {[%clk 0:00:42.5]} 44. Kf1 {[%clk 0:00:16.8]} 44... Kh4 {[%clk 0:00:44.1]}
45. Kg2 {[%clk 0:00:14.7]} 45... Kg4 {[%clk 0:00:45.3]} 46. Kf2 {[%clk 0:00:16]}
46... Kh3 {[%clk 0:00:46.1]} 47. Kg1 {[%clk 0:00:17.1]} 47... Kg3 {[%clk
0:00:45.7]} 0-1

[Event "*** Titled Tuesday Blitz"]
[Site "Chess.com"]
[Date "2019.08.06"]
[Round "3"]
[White "Poghosyan_Suren"]
[Black "rekosheten"]
[Result "0-1"]
[WhiteElo "2473"]
[BlackElo "2375"]
[TimeControl "180+2"]
[EndTime "13:36:35 PDT"]
[Termination "rekosheten won by resignation"]

1. d4 {[%clk 0:02:57]} 1... Nf6 {[%clk 0:03:00.5]} 2. c4 {[%clk 0:02:57.8]} 2...
e6 {[%clk 0:03:01.7]} 3. Nc3 {[%clk 0:02:54.8]} 3... Bb4 {[%clk 0:03:03]} 4. e3
{[%clk 0:02:52.1]} 4... O-O {[%clk 0:03:01.8]} 5. Ne2 {[%clk 0:02:49.1]} 5...
Re8 {[%clk 0:03:01.7]} 6. Ng3 {[%clk 0:02:47.7]} 6... d5 {[%clk 0:02:46.2]} 7.
a3 {[%clk 0:02:25.5]} 7... Bxc3+ {[%clk 0:02:41.6]} 8. bxc3 {[%clk 0:02:25.9]}
8... c5 {[%clk 0:02:43.1]} 9. cxd5 {[%clk 0:02:25.5]} 9... exd5 {[%clk 0:02:42]}
10. Bd3 {[%clk 0:02:25.8]} 10... b6 {[%clk 0:01:41.1]} 11. O-O {[%clk
0:02:21.5]} 11... Ba6 {[%clk 0:01:41.9]} 12. Bxa6 {[%clk 0:02:15]} 12... Nxa6
{[%clk 0:01:43.8]} 13. a4 {[%clk 0:01:58.5]} 13... Ne4 {[%clk 0:01:30.8]} 14.
Nxe4 {[%clk 0:01:49.9]} 14... Rxe4 {[%clk 0:01:32.7]} 15. a5 {[%clk 0:01:41.6]}
15... b5 {[%clk 0:01:22.1]} 16. Qb3 {[%clk 0:01:14.8]} 16... Rb8 {[%clk
0:00:52.9]} 17. Ba3 {[%clk 0:00:55.2]} 17... b4 {[%clk 0:00:39.3]} 18. cxb4
{[%clk 0:00:53.4]} 18... cxd4 {[%clk 0:00:40.4]} 19. b5 {[%clk 0:00:49.4]} 19...
dxe3 {[%clk 0:00:31.5]} 20. fxe3 {[%clk 0:00:42.9]} 20... Qe8 {[%clk 0:00:22.5]}
21. Rab1 {[%clk 0:00:41.3]} 21... Rxe3 {[%clk 0:00:21.6]} 22. Qxd5 {[%clk
0:00:38.3]} 22... Nc7 {[%clk 0:00:21.7]} 23. Qc5 {[%clk 0:00:30.1]} 23... Rxb5
{[%clk 0:00:20.2]} 24. Rxb5 {[%clk 0:00:29.6]} 24... Nxb5 {[%clk 0:00:22.1]} 25.
Bb4 {[%clk 0:00:21]} 25... Re5 {[%clk 0:00:17.6]} 26. Qf2 {[%clk 0:00:19.7]}
26... Re4 {[%clk 0:00:17.4]} 27. Be1 {[%clk 0:00:21.1]} 27... Re2 {[%clk
0:00:16.6]} 28. Qf5 {[%clk 0:00:21]} 28... Rxe1 {[%clk 0:00:16.1]} 29. Rxe1
{[%clk 0:00:21.5]} 29... Qxe1+ {[%clk 0:00:17.8]} 30. Qf1 {[%clk 0:00:23]} 30...
Qxf1+ {[%clk 0:00:19]} 31. Kxf1 {[%clk 0:00:24.4]} 31... f5 {[%clk 0:00:20.9]}
32. Ke2 {[%clk 0:00:24.8]} 32... Kf7 {[%clk 0:00:22.8]} 33. Kd3 {[%clk
0:00:23.9]} 33... Ke6 {[%clk 0:00:24.7]} 34. Kc4 {[%clk 0:00:25]} 34... Nd6+
{[%clk 0:00:24]} 35. Kc5 {[%clk 0:00:26]} 35... Nb7+ {[%clk 0:00:24.9]} 36. Kb5
{[%clk 0:00:26.8]} 36... Nxa5 {[%clk 0:00:26]} 37. Kxa5 {[%clk 0:00:28.7]} 37...
f4 {[%clk 0:00:27.6]} 38. Ka6 {[%clk 0:00:28.4]} 38... g5 {[%clk 0:00:28.2]} 39.
Kxa7 {[%clk 0:00:30.3]} 39... g4 {[%clk 0:00:29.6]} 40. Kb6 {[%clk 0:00:31.3]}
40... f3 {[%clk 0:00:31.5]} 0-1

[Event "*** Titled Tuesday Blitz"]
[Site "Chess.com"]
[Date "2019.08.06"]
[Round "3"]
[White "sergiochess83"]
[Black "Cayse"]
[Result "1-0"]
[WhiteElo "2904"]
[BlackElo "2637"]
[TimeControl "180+2"]
[EndTime "13:36:42 PDT"]
[Termination "sergiochess83 won by resignation"]

1. d4 {[%clk 0:03:01.4]} 1... Nf6 {[%clk 0:03:00.5]} 2. Bf4 {[%clk 0:03:01.4]}
2... e6 {[%clk 0:03:00.4]} 3. e3 {[%clk 0:03:02.3]} 3... b6 {[%clk 0:03:01]} 4.
Nf3 {[%clk 0:03:02.4]} 4... Bb7 {[%clk 0:03:02]} 5. h3 {[%clk 0:03:02.2]} 5...
d5 {[%clk 0:03:01.8]} 6. Bd3 {[%clk 0:03:02.3]} 6... c5 {[%clk 0:03:00.6]} 7. c3
{[%clk 0:03:02.7]} 7... Bd6 {[%clk 0:02:59]} 8. Ne5 {[%clk 0:03:00.9]} 8... Qc7
{[%clk 0:02:56.2]} 9. Nd2 {[%clk 0:02:59.9]} 9... O-O {[%clk 0:02:54.4]} 10. Bh2
{[%clk 0:02:30.5]} 10... Nbd7 {[%clk 0:02:23.8]} 11. f4 {[%clk 0:02:27.9]} 11...
Ne4 {[%clk 0:02:24.6]} 12. Qc2 {[%clk 0:01:50.5]} 12... f5 {[%clk 0:02:23]} 13.
O-O {[%clk 0:01:34.1]} 13... c4 {[%clk 0:02:21.1]} 14. Bxe4 {[%clk 0:01:20.2]}
14... fxe4 {[%clk 0:02:21.9]} 15. Nxd7 {[%clk 0:01:15.2]} 15... Qxd7 {[%clk
0:02:22.4]} 16. Rf2 {[%clk 0:01:17.1]} 16... b5 {[%clk 0:02:21.5]} 17. Raf1
{[%clk 0:01:16.1]} 17... a5 {[%clk 0:02:19.6]} 18. g4 {[%clk 0:01:02.7]} 18...
Rf6 {[%clk 0:02:12.4]} 19. Rg2 {[%clk 0:00:42.8]} 19... b4 {[%clk 0:02:10.4]}
20. Rff2 {[%clk 0:00:41.4]} 20... Rb8 {[%clk 0:02:08.9]} 21. Nf1 {[%clk
0:00:41.8]} 21... Bc6 {[%clk 0:02:08.4]} 22. Ng3 {[%clk 0:00:28]} 22... bxc3
{[%clk 0:02:00.2]} 23. bxc3 {[%clk 0:00:28.3]} 23... Qb7 {[%clk 0:01:58.5]} 24.
f5 {[%clk 0:00:24.6]} 24... exf5 {[%clk 0:01:49.3]} 25. Nxf5 {[%clk 0:00:24.5]}
25... Qb1+ {[%clk 0:01:49]} 26. Rf1 {[%clk 0:00:14.8]} 26... Qxc2 {[%clk
0:01:06.1]} 27. Rxc2 {[%clk 0:00:15.1]} 27... Bxh2+ {[%clk 0:01:06.4]} 28. Rxh2
{[%clk 0:00:16.2]} 28... Re6 {[%clk 0:00:48]} 29. Rhf2 {[%clk 0:00:15.9]} 29...
h6 {[%clk 0:00:48.5]} 30. h4 {[%clk 0:00:15.6]} 30... Kh7 {[%clk 0:00:47.9]} 31.
Kh2 {[%clk 0:00:13.6]} 31... Bd7 {[%clk 0:00:46.9]} 32. Kg3 {[%clk 0:00:12.6]}
32... Rg6 {[%clk 0:00:47.3]} 33. Rf4 {[%clk 0:00:09.8]} 33... Rb2 {[%clk
0:00:41.6]} 34. R1f2 {[%clk 0:00:09.8]} 34... Rb1 {[%clk 0:00:37.4]} 35. Rf1
{[%clk 0:00:11]} 35... Rgb6 {[%clk 0:00:37.2]} 36. Ne7 {[%clk 0:00:10.1]} 36...
Rxf1 {[%clk 0:00:36.2]} 37. Rxf1 {[%clk 0:00:10.6]} 37... Be6 {[%clk 0:00:33.1]}
38. g5 {[%clk 0:00:10]} 38... hxg5 {[%clk 0:00:34]} 39. hxg5 {[%clk 0:00:11.9]}
39... Rb7 {[%clk 0:00:35.2]} 40. Rh1+ {[%clk 0:00:12]} 1-0

[Event "*** Titled Tuesday Blitz"]
[Site "Chess.com"]
[Date "2019.08.06"]
[Round "3"]
[White "2165149677570"]
[Black "filali-marouan"]
[Result "1-0"]
[WhiteElo "2279"]
[BlackElo "2325"]
[TimeControl "180+2"]
[EndTime "13:36:42 PDT"]
[Termination "2165149677570 won by resignation"]

1. e4 {[%clk 0:03:01.9]} 1... c6 {[%clk 0:03:01.9]} 2. d4 {[%clk 0:02:59.8]}
2... d5 {[%clk 0:03:01.9]} 3. exd5 {[%clk 0:03:01.7]} 3... cxd5 {[%clk
0:03:02.6]} 4. c4 {[%clk 0:03:03.6]} 4... Nf6 {[%clk 0:03:01.6]} 5. Nc3 {[%clk
0:03:04.2]} 5... Nc6 {[%clk 0:03:03]} 6. Bg5 {[%clk 0:03:05.4]} 6... e6 {[%clk
0:02:56.6]} 7. Nf3 {[%clk 0:03:04.9]} 7... Be7 {[%clk 0:02:56.7]} 8. c5 {[%clk
0:03:06.3]} 8... O-O {[%clk 0:02:56.6]} 9. Bb5 {[%clk 0:03:03.7]} 9... Ne4
{[%clk 0:02:52.2]} 10. Be3 {[%clk 0:02:56.8]} 10... Nxc3 {[%clk 0:02:50]} 11.
bxc3 {[%clk 0:02:58.2]} 11... Qa5 {[%clk 0:02:51]} 12. Bxc6 {[%clk 0:02:43.1]}
12... bxc6 {[%clk 0:02:46.5]} 13. O-O {[%clk 0:02:43.4]} 13... Ba6 {[%clk
0:02:26.6]} 14. Re1 {[%clk 0:02:43.4]} 14... Qxc3 {[%clk 0:02:27]} 15. Ne5
{[%clk 0:02:40.2]} 15... Rfc8 {[%clk 0:02:24.4]} 16. Qh5 {[%clk 0:02:09]} 16...
g6 {[%clk 0:02:24.4]} 17. Qh3 {[%clk 0:02:00.7]} 17... Bf6 {[%clk 0:02:15.5]}
18. Ng4 {[%clk 0:01:25.8]} 18... Bxd4 {[%clk 0:01:47.1]} 19. Nh6+ {[%clk
0:00:40.7]} 19... Kg7 {[%clk 0:01:41.1]} 20. Rac1 {[%clk 0:00:27]} 20... Qb2
{[%clk 0:01:16.3]} 21. Qf3 {[%clk 0:00:14]} 21... Rc7 {[%clk 0:01:03.7]} 22. Bf4
{[%clk 0:00:09.7]} 22... Rd7 {[%clk 0:01:04.6]} 23. Ng4 {[%clk 0:00:09.6]} 23...
f6 {[%clk 0:01:00.6]} 24. Bh6+ {[%clk 0:00:10.3]} 24... Kg8 {[%clk 0:01:00.8]}
25. Rxe6 {[%clk 0:00:07.4]} 25... Rf7 {[%clk 0:00:57.7]} 26. Rce1 {[%clk
0:00:08.5]} 26... Qb8 {[%clk 0:00:51.5]} 27. Rxc6 {[%clk 0:00:05.4]} 27... Bc4
{[%clk 0:00:48.1]} 28. Rce6 {[%clk 0:00:06]} 28... Qc8 {[%clk 0:00:46.9]} 29. c6
{[%clk 0:00:06.2]} 29... Rb8 {[%clk 0:00:41.1]} 30. c7 {[%clk 0:00:06.6]} 30...
Rxc7 {[%clk 0:00:33.7]} 31. Nxf6+ {[%clk 0:00:06.9]} 31... Kh8 {[%clk
0:00:34.9]} 32. h4 {[%clk 0:00:04.2]} 32... Bc5 {[%clk 0:00:20]} 33. Re8+ {[%clk
0:00:05.2]} 33... Qxe8 {[%clk 0:00:20.3]} 34. Rxe8+ {[%clk 0:00:07.1]} 34...
Rxe8 {[%clk 0:00:21.2]} 35. Nxe8 {[%clk 0:00:09]} 35... d4 {[%clk 0:00:18.5]}
36. Nxc7 {[%clk 0:00:09.4]} 36... Bd6 {[%clk 0:00:19.3]} 37. Ne8 {[%clk
0:00:10.3]} 37... Kg8 {[%clk 0:00:20.2]} 38. Nxd6 {[%clk 0:00:10.4]} 38... Bf7
{[%clk 0:00:22.1]} 39. Qxf7+ {[%clk 0:00:11.1]} 1-0